[Event "44th Chess Olympiad Open 2022"]
[Site "Chennai"]
[Date "2022.08.02"]
[Round "5.50"]
[White "Gengler, Pierre"]
[Black "Gavarrete, Joel"]
[Result "0-1"]
[WhiteElo "2194"]
[BlackElo "2035"]
[Annotator "RC"]
[PlyCount "138"]
[EventDate "2022.??.??"]
[TimeControl "60"]

1. g3 {[%emt 0:00:03]} Nf6 {[%emt 0:01:08]} 2. Bg2 {[%emt 0:00:05]} d5 {
[%emt 0:00:20]} 3. d3 {[%emt 0:00:06]} e6 {[%emt 0:02:03]} 4. Nd2 {[%emt 0:00:
00]} c5 {[%emt 0:10:42]} 5. e4 {[%emt 0:00:34]} Nc6 {[%emt 0:01:29]} 6. Ne2 {
[%emt 0:01:57]} h5 {[%emt 0:07:56]} 7. O-O {[%emt 0:01:27]} g6 {[%emt 0:06:05]}
8. Re1 {[%emt 0:04:07]} Be7 {[%emt 0:03:49]} 9. Nf4 {[%emt 0:01:47]} O-O {
[%emt 0:06:19]} 10. b3 {[%emt 0:00:12]} Re8 {[%emt 0:01:53]} 11. Bb2 {[%emt 0:
00:00]} d4 {[%emt 0:02:41]} 12. e5 {[%emt 0:09:00]} Ng4 {[%emt 0:01:43]} 13.
Nc4 {[%emt 0:04:55]} Qc7 {[%emt 0:00:51]} 14. Bxc6 {[%emt 0:00:42]} Qxc6 {
[%emt 0:00:49]} 15. h3 {[%emt 0:05:19]} Nh6 {[%emt 0:04:23]} 16. Nxh5 {[%emt 0:
00:00]} gxh5 {[%emt 0:03:22]} 17. Qxh5 {[%emt 0:00:09]} Kg7 {[%emt 0:01:30]}
18. Bc1 {[%emt 0:00:35]} Rh8 {[%emt 0:00:23]} 19. Bg5 {[%emt 0:00:09]} Qc7 {
[%emt 0:07:35]} 20. Nd6 {[%emt 0:16:12]} Bxg5 {[%emt 0:10:00]} 21. Qxg5+ {
[%emt 0:00:56]} Kf8 {[%emt 0:00:20]} 22. Re4 {[%emt 0:05:15]} Nf5 {[%emt 0:00:
00]} 23. Rg4 {[%emt 0:10:15]} Qe7 {[%emt 0:01:11]} 24. Ne4 {[%emt 0:10:03]}
Qxg5 {[%emt 0:01:39]} 25. Rxg5 {[%emt 0:00:04]} b6 {[%emt 0:01:18]} 26. h4 {
[%emt 0:05:28]} a5 {[%emt 0:04:32]} 27. a4 {[%emt 0:00:19]} Bb7 {[%emt 0:00:27]
} 28. Nf6 {[%emt 0:00:09]} Ke7 {[%emt 0:04:55]} 29. f4 {[%emt 0:02:34]} Ne3 {
[%emt 0:04:20]} 30. Rc1 {[%emt 0:00:16]} Bd5 {[%emt 0:02:17]} 31. Kf2 {[%emt 0:
00:00]} Rac8 {[%emt 0:01:48]} 32. c4 {[%emt 0:00:11]} Bc6 {[%emt 0:00:42]} 33.
h5 {[%emt 0:00:36]} Rh6 {[%emt 0:00:57]} 34. g4 {[%emt 0:00:26]} Rxf6 {[%emt 0:
00:00]} 35. exf6+ {[%emt 0:00:05]} Kxf6 {[%emt 0:00:06]} 36. Rg1 {[%emt 0:00:
00]} Rh8 {[%emt 0:00:06]} 37. Rg3 {[%emt 0:01:00]} Bb7 {[%emt 0:01:38]} 38. Rh3
{[%emt 0:00:53]} Nc2 {[%emt 0:00:50]} 39. h6 {[%emt 0:00:18]} Rh7 {[%emt 0:00:
00]} 40. Rg8 {[%emt 0:00:08]} Nb4 {[%emt 0:00:34]} 41. g5+ {[%emt 0:32:01]} Ke7
{[%emt 0:01:48]} 42. Rg7 {[%emt 0:00:00]} Nxd3+ {[%emt 0:01:47]} 43. Rxd3 {
[%emt 0:00:00]} Be4 {[%emt 0:00:20]} 44. Rg3 {[%emt 0:00:00]} Kf8 {[%emt 0:00:
00]} 45. g6 {[%emt 0:00:00]} Rxg7 {[%emt 0:00:44]} 46. hxg7+ {[%emt 0:00:00]}
Kxg7 {[%emt 0:00:06]} 47. gxf7+ {[%emt 0:00:00]} Kxf7 {[%emt 0:00:09]} 48. Ke2
{[%emt 0:00:00]} Kf6 {[%emt 0:01:43]} 49. Kd2 {[%emt 0:00:00]} Kf5 {[%emt 0:00:
00]} 50. Rg8 {[%emt 0:00:00]} Kxf4 {[%emt 0:00:11]} 51. Rb8 {[%emt 0:00:00]} e5
{[%emt 0:00:17]} 52. Rxb6 {[%emt 0:00:00]} Bf5 {[%emt 0:02:14]} 53. b4 {
[%emt 0:00:00]} cxb4 {[%emt 0:02:28]} 54. Rd6 {[%emt 0:00:14]} b3 {[%emt 0:00:
00]} 55. Kc1 {[%emt 0:00:25]} d3 {[%emt 0:02:59]} 56. Kb2 {[%emt 0:07:38]} Ke3
{[%emt 0:04:27]} 57. Kxb3 {[%emt 0:00:19]} Kd2 {[%emt 0:01:10]} 58. Rd5 {
[%emt 0:06:48]} e4 {[%emt 0:00:30]} 59. Rxf5 {[%emt 0:00:22]} e3 {[%emt 0:00:
00]} 60. c5 {[%emt 0:04:44]} e2 {[%emt 0:00:08]} 61. Re5 {[%emt 0:00:01]} e1=Q
{[%emt 0:00:28]} 62. Rxe1 {[%emt 0:00:04]} Kxe1 {[%emt 0:00:11]} 63. Kc4 {
[%emt 0:00:25]} d2 {[%emt 0:00:08]} 64. Kb5 {[%emt 0:00:15]} d1=Q {[%emt 0:00:
00]} 65. c6 {[%emt 0:00:49]} Qc2 {[%emt 0:01:17]} 66. Kb6 {[%emt 0:02:07]} Qxa4
{[%emt 0:00:41]} 67. c7 {[%emt 0:00:24]} Qb4+ {[%emt 0:00:30]} 68. Ka7 {
[%emt 0:00:29]} Qc5+ {[%emt 0:00:06]} 69. Kb8 {[%emt 0:00:28]} a4 {[%emt 0:00:
00]} 0-1

[Event "44th Chess Olympiad Open 2022"]
[Site "Chennai"]
[Date "2022.08.02"]
[Round "5.50"]
[White "Villanueva, Marcio"]
[Black "Schartz, Alain"]
[Result "1/2-1/2"]
[WhiteElo "2009"]
[BlackElo "2086"]
[Annotator "NA RC"]
[PlyCount "94"]
[EventDate "2022.??.??"]
[TimeControl "60"]

1. Nf3 {[%emt 0:00:06]} Nf6 {[%emt 0:00:15]} 2. d4 {[%emt 0:00:08]} d5 {
[%emt 0:01:15]} 3. g3 {[%emt 0:00:37]} g6 {[%emt 0:01:54]} 4. Bg2 {[%emt 0:00:
00]} Bg7 {[%emt 0:00:06]} 5. O-O {[%emt 0:02:00]} O-O {[%emt 0:00:06]} 6. Nbd2
{[%emt 0:00:40]} Nbd7 {[%emt 0:03:32]} 7. b3 {[%emt 0:01:23]} c5 {[%emt 0:00:
00]} 8. e3 {[%emt 0:02:22]} cxd4 {[%emt 0:02:02]} 9. exd4 {[%emt 0:01:51]} Nb6
{[%emt 0:03:21]} 10. Re1 {[%emt 0:03:54]} Bg4 {[%emt 0:03:21]} 11. h3 {[%emt 0:
00:00]} Bxf3 {[%emt 0:00:22]} 12. Bxf3 {[%emt 0:00:25]} Rc8 {[%emt 0:02:16]}
13. Ba3 {[%emt 0:07:44]} Re8 {[%emt 0:01:44]} 14. Rc1 {[%emt 0:02:57]} Rc7 {
[%emt 0:02:18]} 15. Kg2 {[%emt 0:07:07]} Bh6 {[%emt 0:09:12]} 16. h4 {[%emt 0:
00:00]} Qc8 {[%emt 0:05:10]} 17. Bb2 {[%emt 0:02:01]} Rc6 {[%emt 0:05:58]} 18.
c4 {[%emt 0:05:20]} Re6 {[%emt 0:15:26]} 19. c5 {[%emt 0:08:41]} Rxe1 {[%emt 0:
00:00]} 20. Qxe1 {[%emt 0:00:23]} Nbd7 {[%emt 0:00:37]} 21. Rc2 {[%emt 0:06:38]
} Nb8 {[%emt 0:02:28]} 22. Nf1 {[%emt 0:02:37]} Bg7 {[%emt 0:02:53]} 23. Ne3 {
[%emt 0:04:13]} Qd7 {[%emt 0:06:56]} 24. Re2 {[%emt 0:01:59]} h5 {[%emt 0:00:
00]} 25. Nc2 {[%emt 0:03:08]} Nc6 {[%emt 0:02:38]} 26. b4 {[%emt 0:00:19]} Nd8
{[%emt 0:00:47]} 27. Na1 {[%emt 0:09:59]} Ne6 {[%emt 0:01:00]} 28. Nb3 {
[%emt 0:05:08]} g5 {[%emt 0:00:46]} 29. Rxe6 {[%emt 0:05:00]} fxe6 {[%emt 0:00:
00]} 30. hxg5 {[%emt 0:00:07]} Nh7 {[%emt 0:00:56]} 31. Bxh5 {[%emt 0:00:32]}
Nxg5 {[%emt 0:03:24]} 32. Bxe8 {[%emt 0:00:11]} Qxe8 {[%emt 0:00:02]} 33. Bc1 {
[%emt 0:00:26]} Ne4 {[%emt 0:03:59]} 34. f3 {[%emt 0:00:16]} Nf6 {[%emt 0:00:
00]} 35. Qxe6+ {[%emt 0:00:27]} Kf8 {[%emt 0:00:10]} 36. Bg5 {[%emt 0:01:09]}
Qa4 {[%emt 0:00:14]} 37. Bxf6 {[%emt 0:01:06]} Qxa2+ {[%emt 0:00:15]} 38. Kh3 {
[%emt 0:00:05]} Bxf6 {[%emt 0:01:54]} 39. Qxd5 {[%emt 0:00:07]} Qc2 {[%emt 0:
00:00]} 40. g4 {[%emt 0:13:06]} Qh7+ {[%emt 0:08:31]} 41. Kg3 {[%emt 0:30:18]}
Qh1 {[%emt 0:07:44]} 42. g5 {[%emt 0:00:00]} Qe1+ {[%emt 0:01:42]} 43. Kg4 {
[%emt 0:00:00]} Qg1+ {[%emt 0:01:50]} 44. Kh5 {[%emt 0:00:00]} e6 {[%emt 0:00:
00]} 45. Qd6+ {[%emt 0:00:00]} Be7 {[%emt 0:02:59]} 46. Qf4+ {[%emt 0:00:00]}
Kg7 {[%emt 0:01:14]} 47. Nd2 {[%emt 0:00:00]} Qh1+ {[%emt 0:01:57]} 1/2-1/2

[Event "44th Chess Olympiad Open 2022"]
[Site "Chennai"]
[Date "2022.08.02"]
[Round "5.50"]
[White "Garcia Cuestas, Kevin"]
[Black "Steil-Antoni, Fiona"]
[Result "1/2-1/2"]
[WhiteElo "1984"]
[BlackElo "2218"]
[Annotator "NA RC"]
[PlyCount "93"]
[EventDate "2022.??.??"]
[TimeControl "60"]

1. Nf3 {[%emt 0:00:22]} f5 {[%emt 0:00:07]} 2. g3 {[%emt 0:01:09]} Nf6 {
[%emt 0:00:26]} 3. d3 {[%emt 0:00:52]} Nc6 {[%emt 0:01:07]} 4. Bg2 {[%emt 0:00:
00]} e5 {[%emt 0:01:01]} 5. c4 {[%emt 0:01:53]} Bc5 {[%emt 0:01:27]} 6. O-O {
[%emt 0:03:22]} d6 {[%emt 0:00:21]} 7. Nc3 {[%emt 0:01:56]} a6 {[%emt 0:03:27]}
8. Bg5 {[%emt 0:06:41]} h6 {[%emt 0:01:24]} 9. Bxf6 {[%emt 0:00:10]} Qxf6 {
[%emt 0:00:09]} 10. Nd5 {[%emt 0:02:51]} Qf7 {[%emt 0:00:28]} 11. e3 {[%emt 0:
00:00]} O-O {[%emt 0:00:57]} 12. Rb1 {[%emt 0:10:40]} Ba7 {[%emt 0:03:51]} 13.
b4 {[%emt 0:05:34]} Nd8 {[%emt 0:03:09]} 14. Nd2 {[%emt 0:05:24]} c6 {[%emt 0:
00:00]} 15. Nc3 {[%emt 0:00:21]} Kh8 {[%emt 0:02:51]} 16. b5 {[%emt 0:04:37]}
f4 {[%emt 0:02:47]} 17. Nce4 {[%emt 0:08:43]} Qg6 {[%emt 0:02:18]} 18. b6 {
[%emt 0:07:55]} Bb8 {[%emt 0:00:40]} 19. exf4 {[%emt 0:06:07]} exf4 {[%emt 0:
00:00]} 20. d4 {[%emt 0:03:07]} d5 {[%emt 0:03:04]} 21. cxd5 {[%emt 0:02:29]}
cxd5 {[%emt 0:00:03]} 22. Nc3 {[%emt 0:00:12]} Bg4 {[%emt 0:01:36]} 23. Bf3 {
[%emt 0:06:26]} Bh3 {[%emt 0:04:19]} 24. Bg2 {[%emt 0:01:33]} Bxg2 {[%emt 0:00:
00]} 25. Kxg2 {[%emt 0:00:07]} Ne6 {[%emt 0:02:12]} 26. Nf3 {[%emt 0:03:52]}
Bd6 {[%emt 0:15:12]} 27. Nh4 {[%emt 0:07:24]} Qg5 {[%emt 0:05:42]} 28. Qd3 {
[%emt 0:00:24]} Rf6 {[%emt 0:00:41]} 29. Nf3 {[%emt 0:01:29]} Qh5 {[%emt 0:00:
00]} 30. Rbe1 {[%emt 0:00:39]} Raf8 {[%emt 0:01:10]} 31. Ne5 {[%emt 0:01:00]}
Bxe5 {[%emt 0:06:52]} 32. Rxe5 {[%emt 0:00:09]} f3+ {[%emt 0:04:02]} 33. Kh1 {
[%emt 0:00:05]} Qh3 {[%emt 0:02:01]} 34. Rg1 {[%emt 0:00:05]} Rf5 {[%emt 0:00:
00]} 35. Nxd5 {[%emt 0:01:31]} Rxe5 {[%emt 0:06:48]} 36. dxe5 {[%emt 0:00:05]}
Rf5 {[%emt 0:00:17]} 37. g4 {[%emt 0:00:05]} Rxe5 {[%emt 0:01:12]} 38. Ne3 {
[%emt 0:01:27]} Qh4 {[%emt 0:02:08]} 39. Rg3 {[%emt 0:00:36]} Rc5 {[%emt 0:00:
00]} 40. Rxf3 {[%emt 0:00:32]} Rc1+ {[%emt 0:06:46]} 41. Kg2 {[%emt 0:30:05]}
g5 {[%emt 0:33:21]} 42. Qg6 {[%emt 0:00:00]} Nf4+ {[%emt 0:00:00]} 43. Rxf4 {
[%emt 0:00:00]} gxf4 {[%emt 0:00:00]} 44. Qe8+ {[%emt 0:00:00]} Kh7 {[%emt 0:
00:00]} 45. Qf7+ {[%emt 0:00:00]} Kh8 {[%emt 0:00:00]} 46. Qf8+ {[%emt 0:00:00]
} Kh7 {[%emt 0:00:00]} 47. Qf7+ {[%emt 0:00:00]} 1/2-1/2

[Event "44th Chess Olympiad Open 2022"]
[Site "Chennai"]
[Date "2022.08.02"]
[Round "5.51"]
[White "Tran, Thanh Tu"]
[Black "Roose Alex"]
[Result "1-0"]
[WhiteElo "2375"]
[BlackElo "1888"]
[Annotator "RC"]
[PlyCount "63"]
[EventDate "2022.??.??"]
[TimeControl "60"]

1. e4 {[%emt 0:00:10]} d6 {[%emt 0:00:21]} 2. d4 {[%emt 0:01:03]} Nf6 {[%emt 0:
00:00]} 3. Nc3 {[%emt 0:00:12]} e5 {[%emt 0:00:23]} 4. Nf3 {[%emt 0:00:58]}
exd4 {[%emt 0:03:56]} 5. Nxd4 {[%emt 0:01:23]} Be7 {[%emt 0:03:48]} 6. Bf4 {
[%emt 0:02:55]} O-O {[%emt 0:02:10]} 7. Be2 {[%emt 0:02:36]} Nc6 {[%emt 0:00:
00]} 8. O-O {[%emt 0:10:31]} Nxd4 {[%emt 0:12:12]} 9. Qxd4 {[%emt 0:00:09]} Be6
{[%emt 0:15:39]} 10. Rad1 {[%emt 0:00:30]} Qc8 {[%emt 0:06:48]} 11. h3 {
[%emt 0:04:48]} Rd8 {[%emt 0:06:34]} 12. Qe3 {[%emt 0:01:16]} Ne8 {[%emt 0:00:
00]} 13. Rd2 {[%emt 0:09:10]} a6 {[%emt 0:05:29]} 14. Nd5 {[%emt 0:03:31]} Bf8
{[%emt 0:02:50]} 15. Bg5 {[%emt 0:02:06]} f6 {[%emt 0:02:45]} 16. Bh4 {[%emt 0:
00:00]} Qd7 {[%emt 0:05:10]} 17. f4 {[%emt 0:02:08]} Qf7 {[%emt 0:02:21]} 18.
a4 {[%emt 0:09:03]} Bxd5 {[%emt 0:03:17]} 19. exd5 {[%emt 0:11:46]} Rd7 {
[%emt 0:02:03]} 20. f5 {[%emt 0:00:27]} Re7 {[%emt 0:00:37]} 21. Qc3 {[%emt 0:
00:00]} Re4 {[%emt 0:01:05]} 22. Bg3 {[%emt 0:00:23]} Rc8 {[%emt 0:00:43]} 23.
Bf3 {[%emt 0:02:00]} Re7 {[%emt 0:00:32]} 24. b4 {[%emt 0:01:00]} Kh8 {[%emt 0:
00:00]} 25. Rdd1 {[%emt 0:01:02]} Rd7 {[%emt 0:02:34]} 26. Rfe1 {[%emt 0:01:45]
} Re7 {[%emt 0:00:37]} 27. Re6 {[%emt 0:01:00]} Rd8 {[%emt 0:00:32]} 28. Rde1 {
[%emt 0:00:22]} Rdd7 {[%emt 0:00:08]} 29. Qe3 {[%emt 0:00:49]} b6 {[%emt 0:00:
00]} 30. a5 {[%emt 0:00:48]} bxa5 {[%emt 0:00:50]} 31. bxa5 {[%emt 0:00:03]}
Rd8 {[%emt 0:01:15]} 32. Rxe7 {[%emt 0:00:14]} 1-0

[Event "44th Chess Olympiad Open 2022"]
[Site "Chennai"]
[Date "2022.08.02"]
[Round "5.51"]
[White "Willem Blijstra"]
[Black "Averbukh, Alex"]
[Result "0-1"]
[WhiteElo "2198"]
[BlackElo "2155"]
[Annotator "NA RC"]
[PlyCount "56"]
[EventDate "2022.??.??"]
[TimeControl "60"]

1. d4 {[%emt 0:00:07]} Nf6 {[%emt 0:00:14]} 2. c4 {[%emt 0:00:08]} e5 {[%emt 0:
00:00]} 3. dxe5 {[%emt 0:00:30]} Ng4 {[%emt 0:00:08]} 4. Bf4 {[%emt 0:07:53]}
Nc6 {[%emt 0:02:53]} 5. Nf3 {[%emt 0:01:00]} Bb4+ {[%emt 0:00:08]} 6. Nc3 {
[%emt 0:04:22]} Qe7 {[%emt 0:00:19]} 7. e3 {[%emt 0:05:07]} Bxc3+ {[%emt 0:00:
00]} 8. bxc3 {[%emt 0:00:04]} Ngxe5 {[%emt 0:00:13]} 9. Be2 {[%emt 0:01:02]} d6
{[%emt 0:00:55]} 10. Nxe5 {[%emt 0:01:18]} Nxe5 {[%emt 0:03:13]} 11. O-O {
[%emt 0:00:38]} Bd7 {[%emt 0:05:45]} 12. c5 {[%emt 0:01:22]} dxc5 {[%emt 0:00:
00]} 13. Qd5 {[%emt 0:00:25]} Nc6 {[%emt 0:03:22]} 14. Bxc7 {[%emt 0:00:29]}
Be6 {[%emt 0:00:43]} 15. Qd6 {[%emt 0:00:28]} Rc8 {[%emt 0:00:28]} 16. Qxe7+ {
[%emt 0:00:32]} Kxe7 {[%emt 0:00:09]} 17. Bg3 {[%emt 0:00:45]} Rhd8 {[%emt 0:
00:00]} 18. Rfd1 {[%emt 0:01:42]} Na5 {[%emt 0:04:21]} 19. Rxd8 {[%emt 0:00:53]
} Rxd8 {[%emt 0:00:17]} 20. a3 {[%emt 0:06:21]} Rd2 {[%emt 0:04:08]} 21. Kf1 {
[%emt 0:00:33]} Bc4 {[%emt 0:01:03]} 22. Bxc4 {[%emt 0:01:50]} Nxc4 {[%emt 0:
00:00]} 23. a4 {[%emt 0:01:22]} Kd7 {[%emt 0:02:29]} 24. a5 {[%emt 0:00:33]}
Kc6 {[%emt 0:00:53]} 25. a6 {[%emt 0:02:47]} b5 {[%emt 0:01:40]} 26. Ke1 {
[%emt 0:01:19]} Kb6 {[%emt 0:02:20]} 27. Bb8 {[%emt 0:00:35]} Rd7 {[%emt 0:00:
00]} 28. Ke2 {[%emt 0:00:32]} Na5 {[%emt 0:00:56]} 0-1

[Event "44th Chess Olympiad Open 2022"]
[Site "Chennai"]
[Date "2022.08.02"]
[Round "5.51"]
[White "Rurik Capella"]
[Black "Kobayashi, Atsuhiko"]
[Result "0-1"]
[WhiteElo "1952"]
[BlackElo "2156"]
[Annotator "NA RC"]
[PlyCount "52"]
[EventDate "2022.??.??"]
[TimeControl "60"]

1. e4 {[%emt 0:00:03]} g6 {[%emt 0:00:07]} 2. d4 {[%emt 0:00:06]} Bg7 {[%emt 0:
00:00]} 3. f4 {[%emt 0:01:11]} d6 {[%emt 0:00:08]} 4. Nf3 {[%emt 0:00:19]} a6 {
[%emt 0:00:07]} 5. Bc4 {[%emt 0:02:41]} b5 {[%emt 0:05:52]} 6. Bb3 {[%emt 0:00:
00]} Nh6 {[%emt 0:01:16]} 7. h3 {[%emt 0:09:38]} Bb7 {[%emt 0:00:33]} 8. Qe2 {
[%emt 0:00:34]} c5 {[%emt 0:08:31]} 9. c3 {[%emt 0:01:06]} Qb6 {[%emt 0:03:33]}
10. dxc5 {[%emt 0:21:01]} dxc5 {[%emt 0:01:36]} 11. O-O {[%emt 0:12:59]} O-O {
[%emt 0:04:39]} 12. g4 {[%emt 0:04:11]} Kh8 {[%emt 0:08:44]} 13. f5 {[%emt 0:
00:00]} Nd7 {[%emt 0:06:06]} 14. g5 {[%emt 0:04:17]} Ng8 {[%emt 0:01:20]} 15.
c4 {[%emt 0:04:31]} Qc6 {[%emt 0:07:02]} 16. Bc2 {[%emt 0:02:38]} bxc4 {
[%emt 0:06:48]} 17. Nc3 {[%emt 0:01:26]} Ne5 {[%emt 0:07:44]} 18. Nxe5 {
[%emt 0:01:30]} Bxe5 {[%emt 0:00:06]} 19. Bf4 {[%emt 0:00:39]} Bd4+ {[%emt 0:
00:00]} 20. Kh2 {[%emt 0:00:54]} f6 {[%emt 0:06:35]} 21. e5 {[%emt 0:04:20]}
fxg5 {[%emt 0:03:54]} 22. Be4 {[%emt 0:00:20]} Qc8 {[%emt 0:02:25]} 23. Bxb7 {
[%emt 0:08:54]} Qxb7 {[%emt 0:00:07]} 24. fxg6 {[%emt 0:00:58]} Rxf4 {[%emt 0:
00:00]} 25. Rxf4 {[%emt 0:01:54]} gxf4 {[%emt 0:00:13]} 26. Ne4 {[%emt 0:05:29]
} Qxb2 {[%emt 0:04:06]} 0-1

[Event "44th Chess Olympiad Open 2022"]
[Site "Chennai"]
[Date "2022.08.02"]
[Round "5.52"]
[White "Al Qudaimi, Basheer"]
[Black "Cilia Vincenti, David"]
[Result "1-0"]
[WhiteElo "2424"]
[BlackElo "1904"]
[Annotator "RC"]
[PlyCount "123"]
[EventDate "2022.??.??"]
[TimeControl "60"]

1. d4 {[%emt 0:00:39]} d5 {[%emt 0:00:07]} 2. Nf3 {[%emt 0:00:54]} e6 {[%emt 0:
00:00]} 3. g3 {[%emt 0:00:42]} b6 {[%emt 0:00:29]} 4. Bg2 {[%emt 0:08:50]} Bb7
{[%emt 0:00:21]} 5. O-O {[%emt 0:00:07]} Nd7 {[%emt 0:00:24]} 6. c4 {[%emt 0:
00:00]} Ngf6 {[%emt 0:11:38]} 7. cxd5 {[%emt 0:00:56]} exd5 {[%emt 0:01:09]} 8.
Bf4 {[%emt 0:00:33]} Be7 {[%emt 0:01:24]} 9. Nc3 {[%emt 0:00:12]} a6 {[%emt 0:
00:00]} 10. Rc1 {[%emt 0:00:51]} O-O {[%emt 0:01:57]} 11. a3 {[%emt 0:07:12]}
c5 {[%emt 0:01:42]} 12. Qb3 {[%emt 0:16:39]} c4 {[%emt 0:04:30]} 13. Qc2 {
[%emt 0:01:23]} b5 {[%emt 0:01:15]} 14. Ne5 {[%emt 0:01:40]} Nb6 {[%emt 0:00:
00]} 15. Rfd1 {[%emt 0:06:37]} Qe8 {[%emt 0:12:46]} 16. g4 {[%emt 0:07:07]} a5
{[%emt 0:04:48]} 17. g5 {[%emt 0:00:15]} Nh5 {[%emt 0:02:02]} 18. Be3 {[%emt 0:
00:00]} b4 {[%emt 0:03:51]} 19. Nb1 {[%emt 0:00:02]} f6 {[%emt 0:02:04]} 20.
gxf6 {[%emt 0:02:03]} gxf6 {[%emt 0:01:38]} 21. Nf3 {[%emt 0:05:39]} Qg6 {
[%emt 0:05:49]} 22. Kh1 {[%emt 0:05:13]} Kh8 {[%emt 0:04:47]} 23. Rg1 {[%emt 0:
00:00]} Qxc2 {[%emt 0:05:35]} 24. Rxc2 {[%emt 0:00:02]} Bc8 {[%emt 0:02:34]}
25. Bh6 {[%emt 0:01:27]} Rg8 {[%emt 0:01:22]} 26. Nh4 {[%emt 0:01:30]} Rg4 {
[%emt 0:07:00]} 27. Nf3 {[%emt 0:00:28]} Bf5 {[%emt 0:01:36]} 28. Rcc1 {
[%emt 0:00:12]} Bd6 {[%emt 0:05:04]} 29. h3 {[%emt 0:01:45]} Rgg8 {[%emt 0:00:
00]} 30. Nh4 {[%emt 0:02:17]} Be6 {[%emt 0:00:43]} 31. e3 {[%emt 0:03:55]} f5 {
[%emt 0:02:01]} 32. Bf3 {[%emt 0:00:57]} Nf6 {[%emt 0:00:17]} 33. Bg5 {[%emt 0:
00:00]} Raf8 {[%emt 0:01:37]} 34. axb4 {[%emt 0:04:27]} axb4 {[%emt 0:00:11]}
35. Bxf6+ {[%emt 0:02:30]} Rxf6 {[%emt 0:00:08]} 36. Rxg8+ {[%emt 0:00:08]}
Kxg8 {[%emt 0:01:10]} 37. Ng2 {[%emt 0:05:33]} f4 {[%emt 0:02:43]} 38. e4 {
[%emt 0:00:57]} dxe4 {[%emt 0:00:24]} 39. Bxe4 {[%emt 0:00:00]} Bxh3 {[%emt 0:
00:00]} 40. Nd2 {[%emt 0:00:23]} Be6 {[%emt 0:01:34]} 41. Kg1 {[%emt 0:35:02]}
Rf7 {[%emt 0:02:19]} 42. d5 {[%emt 0:00:00]} Bxd5 {[%emt 0:02:39]} 43. Bxd5 {
[%emt 0:00:00]} Nxd5 {[%emt 0:00:13]} 44. Rxc4 {[%emt 0:00:00]} f3 {[%emt 0:00:
00]} 45. Nh4 {[%emt 0:00:00]} Rf4 {[%emt 0:05:52]} 46. Rc8+ {[%emt 0:00:00]}
Kf7 {[%emt 0:00:29]} 47. Nhxf3 {[%emt 0:00:00]} Be7 {[%emt 0:01:22]} 48. b3 {
[%emt 0:00:00]} Bf6 {[%emt 0:01:04]} 49. Rc5 {[%emt 0:00:00]} Nc3 {[%emt 0:00:
00]} 50. Kg2 {[%emt 0:00:00]} Kg6 {[%emt 0:06:48]} 51. Rc6 {[%emt 0:00:00]} h5
{[%emt 0:01:39]} 52. Nc4 {[%emt 0:00:00]} Rg4+ {[%emt 0:02:11]} 53. Kf1 {
[%emt 0:00:00]} Re4 {[%emt 0:00:34]} 54. Nfe5+ {[%emt 0:00:00]} Kf5 {[%emt 0:
00:00]} 55. Nd3 {[%emt 0:00:00]} Be7 {[%emt 0:01:10]} 56. Ne3+ {[%emt 0:00:00]}
Kg5 {[%emt 0:00:45]} 57. f4+ {[%emt 0:00:40]} Kh4 {[%emt 0:01:28]} 58. Ng2+ {
[%emt 0:04:13]} Kg3 {[%emt 0:00:54]} 59. Rg6+ {[%emt 0:00:01]} Kh2 {[%emt 0:00:
00]} 60. Nf2 {[%emt 0:00:09]} Rd4 {[%emt 0:00:32]} 61. Ne3 {[%emt 0:00:28]} Ne4
{[%emt 0:00:36]} 62. Rg2# {[%emt 0:00:05]} 1-0

[Event "44th Chess Olympiad Open 2022"]
[Site "Chennai"]
[Date "2022.08.02"]
[Round "5.52"]
[White "Al-Aqrabi, Saleh"]
[Black "Vella, Duncan"]
[Result "1-0"]
[WhiteElo "2172"]
[BlackElo "1985"]
[Annotator "NA RC"]
[PlyCount "77"]
[EventDate "2022.??.??"]
[TimeControl "60"]

1. d4 {[%emt 0:00:02]} Nf6 {[%emt 0:00:09]} 2. Bf4 {[%emt 0:00:09]} g6 {
[%emt 0:00:24]} 3. e3 {[%emt 0:00:03]} Bg7 {[%emt 0:00:06]} 4. h3 {[%emt 0:00:
00]} d6 {[%emt 0:00:20]} 5. c3 {[%emt 0:00:07]} O-O {[%emt 0:00:33]} 6. Nd2 {
[%emt 0:00:26]} Nbd7 {[%emt 0:01:15]} 7. Ngf3 {[%emt 0:00:03]} c5 {[%emt 0:00:
00]} 8. Be2 {[%emt 0:00:15]} b6 {[%emt 0:00:45]} 9. O-O {[%emt 0:00:05]} Bb7 {
[%emt 0:00:03]} 10. Re1 {[%emt 0:00:39]} Qc7 {[%emt 0:01:39]} 11. Bf1 {[%emt 0:
00:00]} Rfe8 {[%emt 0:03:09]} 12. a4 {[%emt 0:00:42]} a6 {[%emt 0:01:00]} 13.
Bh2 {[%emt 0:00:34]} Ne4 {[%emt 0:15:49]} 14. Qb3 {[%emt 0:03:20]} Nxd2 {
[%emt 0:04:25]} 15. Nxd2 {[%emt 0:00:05]} Qc6 {[%emt 0:14:24]} 16. f3 {[%emt 0:
00:00]} d5 {[%emt 0:03:47]} 17. Kh1 {[%emt 0:00:41]} e5 {[%emt 0:03:16]} 18.
dxe5 {[%emt 0:04:05]} Bxe5 {[%emt 0:04:01]} 19. Bxe5 {[%emt 0:00:06]} Nxe5 {
[%emt 0:01:35]} 20. e4 {[%emt 0:00:17]} Qe6 {[%emt 0:14:43]} 21. exd5 {[%emt 0:
00:00]} Bxd5 {[%emt 0:02:57]} 22. c4 {[%emt 0:00:02]} Bb7 {[%emt 0:00:14]} 23.
f4 {[%emt 0:00:04]} Qd6 {[%emt 0:02:02]} 24. fxe5 {[%emt 0:02:10]} Qxd2 {
[%emt 0:00:15]} 25. Qxb6 {[%emt 0:00:14]} Qd7 {[%emt 0:07:58]} 26. Qxc5 {
[%emt 0:00:28]} Qxh3+ {[%emt 0:00:12]} 27. Kg1 {[%emt 0:00:03]} Qg4 {[%emt 0:
00:00]} 28. b4 {[%emt 0:00:30]} Rac8 {[%emt 0:01:41]} 29. Qf2 {[%emt 0:00:16]}
Qg5 {[%emt 0:01:32]} 30. Qe3 {[%emt 0:03:22]} Qg4 {[%emt 0:01:26]} 31. c5 {
[%emt 0:00:23]} Re7 {[%emt 0:02:55]} 32. b5 {[%emt 0:00:32]} axb5 {[%emt 0:00:
00]} 33. axb5 {[%emt 0:00:03]} Rce8 {[%emt 0:00:05]} 34. Qc3 {[%emt 0:00:20]}
Qd7 {[%emt 0:03:27]} 35. c6 {[%emt 0:01:53]} Qc7 {[%emt 0:00:02]} 36. Qd4 {
[%emt 0:00:50]} Bc8 {[%emt 0:01:50]} 37. Rac1 {[%emt 0:00:18]} Rd8 {[%emt 0:00:
00]} 38. Qc5 {[%emt 0:00:32]} Bf5 {[%emt 0:01:05]} 39. b6 {[%emt 0:00:17]} 1-0